[Event "Titled Tuesday Blitz February 07 Early 2023"]
[White "Malka, Samuel"]
[Black "Durarbayli, Vasif"]
[WhiteFideId "20643675"]
[BlackFideId "13402935"]
[WhiteElo "2165"]
[BlackElo "2627"]
[Result "1/2-1/2"]
[Round "01"]
[TimeControl "180+2"]
[Date "2023.02.07"]
[WhiteClock "0:00:19"]
[BlackClock "0:00:09"]

1. d4 {[%clk 0:02:59]}  Nf6 {[%clk 0:02:57]} 2. c4 {[%clk 0:02:59]}  e6 {[%clk 0:02:57]} 3. Nf3 {[%clk 0:02:59]}  c5 {[%clk 0:02:58]} 4. d5 {[%clk 0:02:59]}  exd5 {[%clk 0:02:59]} 5. cxd5 {[%clk 0:03:00]}  d6 {[%clk 0:03:00]} 6. Nc3 {[%clk 0:03:00]}  g6 {[%clk 0:03:00]} 7. Bf4 {[%clk 0:03:01]}  Bg7 {[%clk 0:02:51]} 8. e3 {[%clk 0:02:58]}  O-O {[%clk 0:02:46]} 9. h3 {[%clk 0:02:58]}  Na6 {[%clk 0:02:28]} 10. Bxa6 {[%clk 0:02:57]}  bxa6 {[%clk 0:02:28]} 11. Rc1 {[%clk 0:02:58]}  Rb8 {[%clk 0:02:10]} 12. b3 {[%clk 0:02:57]}  a5 {[%clk 0:02:10]} 13. O-O {[%clk 0:02:57]}  Ba6 {[%clk 0:02:10]} 14. Re1 {[%clk 0:02:58]}  Rb4 {[%clk 0:02:08]} 15. a3 {[%clk 0:02:50]}  Rb7 {[%clk 0:02:03]} 16. Nd2 {[%clk 0:02:43]}  a4 {[%clk 0:01:31]} 17. Nxa4 {[%clk 0:02:25]}  Nxd5 {[%clk 0:01:29]} 18. Bh2 {[%clk 0:02:18]}  Nf6 {[%clk 0:00:45]} 19. Nc4 {[%clk 0:02:05]}  Bxc4 {[%clk 0:00:45]} 20. bxc4 {[%clk 0:02:06]}  Rd7 {[%clk 0:00:45]} 21. Nc3 {[%clk 0:02:00]}  d5 {[%clk 0:00:42]} 22. cxd5 {[%clk 0:01:55]}  Nxd5 {[%clk 0:00:43]} 23. Nxd5 {[%clk 0:01:54]}  Rxd5 {[%clk 0:00:44]} 24. Qa4 {[%clk 0:01:42]}  Qe7 {[%clk 0:00:42]} 25. Red1 {[%clk 0:01:28]}  Rxd1+ {[%clk 0:00:33]} 26. Rxd1 {[%clk 0:01:29]}  Rc8 {[%clk 0:00:27]} 27. Qc4 {[%clk 0:01:23]}  Qe6 {[%clk 0:00:22]} 28. Rc1 {[%clk 0:00:45]}  Bb2 {[%clk 0:00:21]} 29. Rc2 {[%clk 0:00:45]}  Qxc4 {[%clk 0:00:20]} 30. Rxc4 {[%clk 0:00:45]}  Bxa3 {[%clk 0:00:21]} 31. Kf1 {[%clk 0:00:43]}  Bb4 {[%clk 0:00:21]} 32. Ke2 {[%clk 0:00:44]}  Rd8 {[%clk 0:00:21]} 33. Be5 {[%clk 0:00:38]}  Rd2+ {[%clk 0:00:20]} 34. Kf3 {[%clk 0:00:38]}  f5 {[%clk 0:00:17]} 35. g4 {[%clk 0:00:32]}  Kf7 {[%clk 0:00:17]} 36. gxf5 {[%clk 0:00:32]}  gxf5 {[%clk 0:00:18]} 37. Rh4 {[%clk 0:00:31]}  Ke6 {[%clk 0:00:15]} 38. Bf4 {[%clk 0:00:30]}  c4 {[%clk 0:00:11]} 39. Rh6+ {[%clk 0:00:22]}  Kd5 {[%clk 0:00:10]} 40. Rh5 {[%clk 0:00:17]}  c3 {[%clk 0:00:09]} 41. e4+ {[%clk 0:00:17]}  Kd4 {[%clk 0:00:04]} 42. Bxd2 {[%clk 0:00:18]}  cxd2 {[%clk 0:00:05]} 43. Ke2 {[%clk 0:00:19]}  Kxe4 {[%clk 0:00:06]} 44. Rxh7 {[%clk 0:00:18]}  a5 {[%clk 0:00:06]} 45. Rd7 {[%clk 0:00:16]}  f4 {[%clk 0:00:06]} 46. h4 {[%clk 0:00:16]}  f3+ {[%clk 0:00:06]} 47. Kd1 {[%clk 0:00:17]}  Kf5 {[%clk 0:00:06]} 48. Rd3 {[%clk 0:00:16]}  Kg4 {[%clk 0:00:06]} 49. h5 {[%clk 0:00:16]}  Kxh5 {[%clk 0:00:06]} 50. Rxf3 {[%clk 0:00:17]}  Kg4 {[%clk 0:00:07]} 51. Rf7 {[%clk 0:00:17]}  Kg5 {[%clk 0:00:07]} 52. f4+ {[%clk 0:00:15]}  Kg6 {[%clk 0:00:07]} 53. Rb7 {[%clk 0:00:15]}  Kf5 {[%clk 0:00:08]} 54. Rxb4 {[%clk 0:00:15]}  axb4 {[%clk 0:00:08]} 55. Kxd2 {[%clk 0:00:16]}  Kxf4 {[%clk 0:00:09]} 56. Kc2 {[%clk 0:00:17]}  Ke4 {[%clk 0:00:09]} 57. Kb3 {[%clk 0:00:18]}  Kd5 {[%clk 0:00:09]} 58. Kxb4 {[%clk 0:00:19]} 1/2-1/2


[Site "https://www.chess.com"]

[Event "Titled Tuesday Blitz February 07 Early 2023"]
[White "Ter-Sahakyan, Samvel"]
[Black "Principe, Gerson"]
[WhiteFideId "13302531"]
[BlackFideId "3804550"]
[WhiteElo "2617"]
[BlackElo "2226"]
[Result "1-0"]
[Round "01"]
[TimeControl "180+2"]
[Date "2023.02.07"]
[WhiteClock "0:00:38"]
[BlackClock "0:00:22"]

1. d4 {[%clk 0:02:59]}  Nf6 {[%clk 0:02:58]} 2. c4 {[%clk 0:02:59]}  e6 {[%clk 0:02:57]} 3. Nf3 {[%clk 0:02:58]}  b6 {[%clk 0:02:57]} 4. g3 {[%clk 0:02:58]}  Bb7 {[%clk 0:02:57]} 5. Bg2 {[%clk 0:02:58]}  Be7 {[%clk 0:02:58]} 6. O-O {[%clk 0:02:59]}  O-O {[%clk 0:02:59]} 7. h4 {[%clk 0:02:58]}  a5 {[%clk 0:02:52]} 8. Re1 {[%clk 0:02:51]}  Bb4 {[%clk 0:02:33]} 9. Bd2 {[%clk 0:02:46]}  Na6 {[%clk 0:02:29]} 10. Nc3 {[%clk 0:02:39]}  Ne4 {[%clk 0:02:20]} 11. Qc2 {[%clk 0:02:23]}  Bxc3 {[%clk 0:02:04]} 12. Bxc3 {[%clk 0:02:23]}  f5 {[%clk 0:01:46]} 13. Ng5 {[%clk 0:02:13]}  Nd6 {[%clk 0:01:38]} 14. Bxb7 {[%clk 0:01:51]}  Nxb7 {[%clk 0:01:35]} 15. e4 {[%clk 0:01:40]}  h6 {[%clk 0:01:35]} 16. Nh3 {[%clk 0:01:39]}  Nd6 {[%clk 0:01:23]} 17. exf5 {[%clk 0:01:31]}  Nxf5 {[%clk 0:01:19]} 18. Qe4 {[%clk 0:01:28]}  Qe7 {[%clk 0:00:53]} 19. Nf4 {[%clk 0:01:24]}  Qf7 {[%clk 0:00:52]} 20. h5 {[%clk 0:01:16]}  Nd6 {[%clk 0:00:51]} 21. Qe2 {[%clk 0:01:15]}  Rfe8 {[%clk 0:00:41]} 22. Rad1 {[%clk 0:01:14]}  Nb4 {[%clk 0:00:38]} 23. a3 {[%clk 0:00:56]}  Nc6 {[%clk 0:00:32]} 24. Ng6 {[%clk 0:00:43]}  Qf5 {[%clk 0:00:23]} 25. d5 {[%clk 0:00:39]}  e5 {[%clk 0:00:22]} 26. dxc6 {[%clk 0:00:38]} 1-0


[Site "https://www.chess.com"]

[Event "Titled Tuesday Blitz February 07 Early 2023"]
[White "Pein, Jonathan"]
[Black "Jones, Gawain C B"]
[WhiteFideId "417092"]
[BlackFideId "409561"]
[WhiteElo "2265"]
[BlackElo "2618"]
[Result "0-1"]
[Round "01"]
[TimeControl "180+2"]
[Date "2023.02.07"]
[WhiteClock "0:00:44"]
[BlackClock "0:01:31"]

1. e4 {[%clk 0:02:58]}  c5 {[%clk 0:03:00]} 2. g3 {[%clk 0:02:58]}  d5 {[%clk 0:03:00]} 3. exd5 {[%clk 0:02:59]}  Qxd5 {[%clk 0:03:00]} 4. Nf3 {[%clk 0:03:00]}  Qe4+ {[%clk 0:03:00]} 5. Be2 {[%clk 0:02:48]}  Bh3 {[%clk 0:02:53]} 6. d3 {[%clk 0:02:37]}  Qc6 {[%clk 0:02:46]} 7. Nc3 {[%clk 0:02:33]}  Nd7 {[%clk 0:02:46]} 8. Be3 {[%clk 0:02:21]}  e5 {[%clk 0:02:42]} 9. Rg1 {[%clk 0:02:13]}  Ngf6 {[%clk 0:02:40]} 10. Qd2 {[%clk 0:02:06]}  h6 {[%clk 0:02:31]} 11. O-O-O {[%clk 0:02:03]}  Be7 {[%clk 0:02:27]} 12. Kb1 {[%clk 0:02:02]}  b5 {[%clk 0:02:20]} 13. d4 {[%clk 0:01:49]}  cxd4 {[%clk 0:02:18]} 14. Bxb5 {[%clk 0:01:48]}  Qxf3 {[%clk 0:02:17]} 15. Bxd4 {[%clk 0:01:39]}  exd4 {[%clk 0:02:17]} 16. Qxd4 {[%clk 0:01:40]}  O-O {[%clk 0:02:14]} 17. g4 {[%clk 0:01:40]}  Bxg4 {[%clk 0:02:05]} 18. Be2 {[%clk 0:01:37]}  Bc5 {[%clk 0:01:54]} 19. Bxf3 {[%clk 0:01:09]}  Bxd4 {[%clk 0:01:53]} 20. Bxa8 {[%clk 0:01:09]}  Bxd1 {[%clk 0:01:47]} 21. Rxd1 {[%clk 0:01:04]}  Bxc3 {[%clk 0:01:47]} 22. Bc6 {[%clk 0:00:56]}  Ba5 {[%clk 0:01:34]} 23. Bxd7 {[%clk 0:00:49]}  Rd8 {[%clk 0:01:33]} 24. Bg4 {[%clk 0:00:49]}  Nxg4 {[%clk 0:01:33]} 25. Rg1 {[%clk 0:00:45]}  Nxf2 {[%clk 0:01:32]} 26. c3 {[%clk 0:00:44]}  Rd1+ {[%clk 0:01:32]} 27. Rxd1 {[%clk 0:00:43]}  Nxd1 {[%clk 0:01:33]} 28. Kc2 {[%clk 0:00:44]}  Nxb2 {[%clk 0:01:31]} 0-1


[Site "https://www.chess.com"]

[Event "Titled Tuesday Blitz February 07 Early 2023"]
[White "Samunenkov, Ihor"]
[Black "Danielyan, Vahe"]
[WhiteFideId "14187086"]
[BlackFideId "13304828"]
[WhiteElo "2501"]
[BlackElo "2346"]
[Result "1-0"]
[Round "01"]
[TimeControl "180+2"]
[Date "2023.02.07"]
[WhiteClock "0:00:09"]
[BlackClock "0:00:01"]

1. d4 {[%clk 0:02:54]}  Nf6 {[%clk 0:02:57]} 2. c4 {[%clk 0:02:54]}  g6 {[%clk 0:02:56]} 3. Nf3 {[%clk 0:02:52]}  Bg7 {[%clk 0:02:56]} 4. g3 {[%clk 0:02:53]}  O-O {[%clk 0:02:55]} 5. Bg2 {[%clk 0:02:54]}  d6 {[%clk 0:02:51]} 6. O-O {[%clk 0:02:54]}  c6 {[%clk 0:02:44]} 7. Nc3 {[%clk 0:02:53]}  Qa5 {[%clk 0:02:44]} 8. e4 {[%clk 0:02:46]}  Qh5 {[%clk 0:02:39]} 9. e5 {[%clk 0:02:11]}  dxe5 {[%clk 0:02:17]} 10. Nxe5 {[%clk 0:02:11]}  Qxd1 {[%clk 0:02:15]} 11. Rxd1 {[%clk 0:02:11]}  Nbd7 {[%clk 0:02:08]} 12. Nf3 {[%clk 0:02:00]}  Nb6 {[%clk 0:02:07]} 13. b3 {[%clk 0:01:59]}  Bf5 {[%clk 0:01:59]} 14. Ba3 {[%clk 0:01:51]}  Rfe8 {[%clk 0:01:44]} 15. Re1 {[%clk 0:01:51]}  e6 {[%clk 0:01:24]} 16. h3 {[%clk 0:01:49]}  h5 {[%clk 0:01:17]} 17. Bb2 {[%clk 0:01:38]}  Rad8 {[%clk 0:01:12]} 18. Rad1 {[%clk 0:01:35]}  a5 {[%clk 0:01:02]} 19. Ne5 {[%clk 0:01:21]}  a4 {[%clk 0:00:58]} 20. c5 {[%clk 0:01:11]}  Nbd5 {[%clk 0:00:33]} 21. Nxa4 {[%clk 0:01:10]}  Nd7 {[%clk 0:00:19]} 22. Nc4 {[%clk 0:01:08]}  Nb4 {[%clk 0:00:14]} 23. a3 {[%clk 0:00:59]}  Nd5 {[%clk 0:00:07]} 24. Nd6 {[%clk 0:00:57]}  Rf8 {[%clk 0:00:06]} 25. Re2 {[%clk 0:00:49]}  Rb8 {[%clk 0:00:04]} 26. Rc1 {[%clk 0:00:29]}  b5 {[%clk 0:00:04]} 27. cxb6 {[%clk 0:00:29]}  N7xb6 {[%clk 0:00:05]} 28. Nxb6 {[%clk 0:00:25]}  Rxb6 {[%clk 0:00:06]} 29. b4 {[%clk 0:00:26]}  Ra8 {[%clk 0:00:05]} 30. Nxf5 {[%clk 0:00:24]}  gxf5 {[%clk 0:00:05]} 31. Rec2 {[%clk 0:00:25]}  Bh6 {[%clk 0:00:02]} 32. Rd1 {[%clk 0:00:21]}  Rba6 {[%clk 0:00:01]} 33. Bf1 {[%clk 0:00:21]}  Rb6 {[%clk 0:00:01]} 34. Be2 {[%clk 0:00:21]}  h4 {[%clk 0:00:01]} 35. Rd3 {[%clk 0:00:15]}  hxg3 {[%clk 0:00:01]} 36. fxg3 {[%clk 0:00:15]}  Kf8 {[%clk 0:00:02]} 37. Bf3 {[%clk 0:00:14]}  Ne3 {[%clk 0:00:02]} 38. Rcc3 {[%clk 0:00:10]}  Rd8 {[%clk 0:00:01]} 39. Rxe3 {[%clk 0:00:09]} 1-0


[Site "https://www.chess.com"]

[Event "Titled Tuesday Blitz February 07 Early 2023"]
[White "Toczek, Grzegorz"]
[Black "Gharibyan, Mamikon"]
[WhiteFideId "1106457"]
[BlackFideId "13308300"]
[WhiteElo "2260"]
[BlackElo "2500"]
[Result "0-1"]
[Round "01"]
[TimeControl "180+2"]
[Date "2023.02.07"]
[WhiteClock "0:00:14"]
[BlackClock "0:01:00"]

1. e4 {[%clk 0:02:59]}  c5 {[%clk 0:02:58]} 2. Nc3 {[%clk 0:02:58]}  e6 {[%clk 0:02:56]} 3. g3 {[%clk 0:02:54]}  a6 {[%clk 0:02:55]} 4. Bg2 {[%clk 0:02:50]}  b5 {[%clk 0:02:56]} 5. f4 {[%clk 0:02:29]}  Bb7 {[%clk 0:02:50]} 6. d3 {[%clk 0:02:28]}  Nf6 {[%clk 0:02:49]} 7. Nf3 {[%clk 0:02:26]}  d5 {[%clk 0:02:41]} 8. Qe2 {[%clk 0:02:14]}  b4 {[%clk 0:02:33]} 9. Nd1 {[%clk 0:02:07]}  dxe4 {[%clk 0:02:30]} 10. dxe4 {[%clk 0:02:02]}  Bxe4 {[%clk 0:02:31]} 11. O-O {[%clk 0:02:02]}  Be7 {[%clk 0:02:30]} 12. Nf2 {[%clk 0:01:58]}  Bd5 {[%clk 0:02:30]} 13. Nd3 {[%clk 0:01:43]}  Nc6 {[%clk 0:02:26]} 14. Nde5 {[%clk 0:01:37]}  O-O {[%clk 0:02:09]} 15. Be3 {[%clk 0:01:33]}  Qe8 {[%clk 0:02:02]} 16. b3 {[%clk 0:01:20]}  h6 {[%clk 0:01:57]} 17. Rad1 {[%clk 0:01:15]}  Nxe5 {[%clk 0:01:50]} 18. Nxe5 {[%clk 0:01:15]}  Qb5 {[%clk 0:01:49]} 19. Rfe1 {[%clk 0:01:11]}  Rfd8 {[%clk 0:01:47]} 20. Nc4 {[%clk 0:00:51]}  a5 {[%clk 0:01:42]} 21. h3 {[%clk 0:00:46]}  a4 {[%clk 0:01:41]} 22. Kh2 {[%clk 0:00:45]}  axb3 {[%clk 0:01:32]} 23. axb3 {[%clk 0:00:44]}  Ra2 {[%clk 0:01:32]} 24. Rd2 {[%clk 0:00:43]}  Bxg2 {[%clk 0:01:23]} 25. Rxd8+ {[%clk 0:00:42]}  Bxd8 {[%clk 0:01:24]} 26. Qxg2 {[%clk 0:00:42]}  Nd5 {[%clk 0:01:23]} 27. Bg1 {[%clk 0:00:36]}  Bf6 {[%clk 0:01:21]} 28. Qe4 {[%clk 0:00:31]}  g6 {[%clk 0:01:21]} 29. h4 {[%clk 0:00:31]}  h5 {[%clk 0:01:21]} 30. Nd6 {[%clk 0:00:28]}  Qd7 {[%clk 0:01:18]} 31. Nc4 {[%clk 0:00:28]}  Qc7 {[%clk 0:01:15]} 32. Kh3 {[%clk 0:00:25]}  Kg7 {[%clk 0:01:15]} 33. Rf1 {[%clk 0:00:24]}  Ne7 {[%clk 0:01:14]} 34. Qe3 {[%clk 0:00:21]}  Bd4 {[%clk 0:01:14]} 35. Qe4 {[%clk 0:00:21]}  Nf5 {[%clk 0:01:14]} 36. Bxd4+ {[%clk 0:00:21]}  Nxd4 {[%clk 0:01:14]} 37. Rf2 {[%clk 0:00:21]}  Nf5 {[%clk 0:01:12]} 38. Ne5 {[%clk 0:00:21]}  Ra1 {[%clk 0:01:10]} 39. Re2 {[%clk 0:00:21]}  Qd6 {[%clk 0:01:06]} 40. Nc4 {[%clk 0:00:19]}  Qd5 {[%clk 0:01:05]} 41. Qe5+ {[%clk 0:00:20]}  Qxe5 {[%clk 0:01:04]} 42. Nxe5 {[%clk 0:00:20]}  Nd4 {[%clk 0:01:04]} 43. Rd2 {[%clk 0:00:20]}  Ra2 {[%clk 0:01:04]} 44. Nd7 {[%clk 0:00:20]}  Nxb3 {[%clk 0:01:03]} 45. Rg2 {[%clk 0:00:13]}  Nd4 {[%clk 0:01:01]} 46. Nxc5 {[%clk 0:00:14]}  Rxc2 {[%clk 0:01:02]} 47. Rg1 {[%clk 0:00:14]}  b3 {[%clk 0:01:00]} 0-1


[Site "https://www.chess.com"]

[Event "Titled Tuesday Blitz February 07 Early 2023"]
[White "Fiorito, Francisco"]
[Black "Krzyzanowski, Marcin"]
[WhiteFideId "180165"]
[BlackFideId "1132199"]
[WhiteElo "2305"]
[BlackElo "2512"]
[Result "1-0"]
[Round "01"]
[TimeControl "180+2"]
[Date "2023.02.07"]
[WhiteClock "0:00:16"]
[BlackClock "0:00:03"]

1. Nf3 {[%clk 0:03:00]}  d5 {[%clk 0:02:55]} 2. g3 {[%clk 0:03:01]}  Nf6 {[%clk 0:02:53]} 3. Bg2 {[%clk 0:03:02]}  g6 {[%clk 0:02:53]} 4. O-O {[%clk 0:03:02]}  Bg7 {[%clk 0:02:53]} 5. d4 {[%clk 0:03:03]}  O-O {[%clk 0:02:53]} 6. c4 {[%clk 0:03:04]}  c6 {[%clk 0:02:53]} 7. cxd5 {[%clk 0:03:04]}  cxd5 {[%clk 0:02:54]} 8. Nc3 {[%clk 0:03:04]}  Ne4 {[%clk 0:02:52]} 9. Ne5 {[%clk 0:02:58]}  Nxc3 {[%clk 0:02:45]} 10. bxc3 {[%clk 0:02:57]}  e6 {[%clk 0:02:46]} 11. Ba3 {[%clk 0:02:53]}  Re8 {[%clk 0:02:44]} 12. Qb3 {[%clk 0:02:53]}  Nd7 {[%clk 0:02:43]} 13. Nxd7 {[%clk 0:02:49]}  Qxd7 {[%clk 0:02:43]} 14. Rad1 {[%clk 0:02:44]}  b6 {[%clk 0:02:41]} 15. c4 {[%clk 0:02:19]}  dxc4 {[%clk 0:02:31]} 16. Qxc4 {[%clk 0:02:19]}  Bb7 {[%clk 0:02:29]} 17. e4 {[%clk 0:02:20]}  Rac8 {[%clk 0:02:27]} 18. Qb4 {[%clk 0:02:09]}  Ba6 {[%clk 0:02:24]} 19. Rfe1 {[%clk 0:02:07]}  Rc4 {[%clk 0:02:23]} 20. Qd6 {[%clk 0:01:50]}  Qxd6 {[%clk 0:02:19]} 21. Bxd6 {[%clk 0:01:51]}  Rxd4 {[%clk 0:02:19]} 22. e5 {[%clk 0:01:46]}  Rxd1 {[%clk 0:02:08]} 23. Rxd1 {[%clk 0:01:47]}  Rc8 {[%clk 0:02:06]} 24. Be4 {[%clk 0:01:45]}  Be2 {[%clk 0:01:41]} 25. Rd2 {[%clk 0:01:39]}  Rc1+ {[%clk 0:01:38]} 26. Kg2 {[%clk 0:01:38]}  Bf1+ {[%clk 0:01:39]} 27. Kf3 {[%clk 0:01:39]}  Bc4 {[%clk 0:01:34]} 28. Bb8 {[%clk 0:01:33]}  h5 {[%clk 0:01:22]} 29. Bxa7 {[%clk 0:01:30]}  b5 {[%clk 0:01:20]} 30. Bd4 {[%clk 0:01:28]}  Bh6 {[%clk 0:01:13]} 31. Rb2 {[%clk 0:01:16]}  Rh1 {[%clk 0:01:10]} 32. h4 {[%clk 0:01:15]}  Re1 {[%clk 0:01:07]} 33. Bc6 {[%clk 0:01:11]}  Rd1 {[%clk 0:00:53]} 34. Be3 {[%clk 0:01:09]}  Bxe3 {[%clk 0:00:48]} 35. Kxe3 {[%clk 0:01:09]}  Rd3+ {[%clk 0:00:48]} 36. Kf4 {[%clk 0:01:08]}  Ra3 {[%clk 0:00:46]} 37. Bxb5 {[%clk 0:01:06]}  Bxa2 {[%clk 0:00:43]} 38. Bc6 {[%clk 0:01:02]}  Kg7 {[%clk 0:00:41]} 39. Rb7 {[%clk 0:01:02]}  Rb3 {[%clk 0:00:19]} 40. Ra7 {[%clk 0:00:59]}  Rb4+ {[%clk 0:00:19]} 41. Ke3 {[%clk 0:00:57]}  Bd5 {[%clk 0:00:18]} 42. Be8 {[%clk 0:00:57]}  Re4+ {[%clk 0:00:18]} 43. Kd2 {[%clk 0:00:56]}  Rxe5 {[%clk 0:00:18]} 44. Rxf7+ {[%clk 0:00:56]}  Kh6 {[%clk 0:00:17]} 45. Rf6 {[%clk 0:00:53]}  Be4 {[%clk 0:00:17]} 46. f3 {[%clk 0:00:43]}  Bf5 {[%clk 0:00:15]} 47. g4 {[%clk 0:00:43]}  hxg4 {[%clk 0:00:08]} 48. fxg4 {[%clk 0:00:43]}  Bb1 {[%clk 0:00:09]} 49. Rf7 {[%clk 0:00:19]}  Rd5+ {[%clk 0:00:02]} 50. Kc1 {[%clk 0:00:17]}  Rd8 {[%clk 0:00:03]} 51. Bd7 {[%clk 0:00:16]}  Bd3 {[%clk 0:00:03]} 52. Bxe6 {[%clk 0:00:16]}  Be2 {[%clk 0:00:03]} 53. g5+ {[%clk 0:00:16]}  Kh5 {[%clk 0:00:03]} 54. Rh7# {[%clk 0:00:16]} 1-0


[Site "https://www.chess.com"]

[Event "Titled Tuesday Blitz February 07 Early 2023"]
[White "Gokerkan, Cem Kaan"]
[Black "Mamedov, Edgar"]
[WhiteFideId "6336760"]
[BlackFideId "13739980"]
[WhiteElo "2500"]
[BlackElo "2193"]
[Result "1-0"]
[Round "01"]
[TimeControl "180+2"]
[Date "2023.02.07"]
[WhiteClock "0:00:14"]
[BlackClock "0:00:18"]

1. e4 {[%clk 0:02:51]}  c6 {[%clk 0:02:57]} 2. Nc3 {[%clk 0:02:41]}  d5 {[%clk 0:02:57]} 3. Nf3 {[%clk 0:02:42]}  dxe4 {[%clk 0:02:55]} 4. Nxe4 {[%clk 0:02:42]}  Nf6 {[%clk 0:02:55]} 5. Qe2 {[%clk 0:02:40]}  Nxe4 {[%clk 0:02:54]} 6. Qxe4 {[%clk 0:02:41]}  Be6 {[%clk 0:02:53]} 7. d4 {[%clk 0:02:37]}  Bd5 {[%clk 0:02:52]} 8. Qg4 {[%clk 0:02:08]}  Bxf3 {[%clk 0:02:50]} 9. gxf3 {[%clk 0:02:02]}  Nd7 {[%clk 0:02:49]} 10. c3 {[%clk 0:02:02]}  Nf6 {[%clk 0:02:49]} 11. Qg3 {[%clk 0:02:00]}  e6 {[%clk 0:02:47]} 12. Bd3 {[%clk 0:01:59]}  g6 {[%clk 0:02:37]} 13. Bg5 {[%clk 0:01:55]}  Bg7 {[%clk 0:02:34]} 14. O-O-O {[%clk 0:01:54]}  Qe7 {[%clk 0:02:21]} 15. h4 {[%clk 0:01:49]}  O-O-O {[%clk 0:02:18]} 16. h5 {[%clk 0:01:41]}  h6 {[%clk 0:02:08]} 17. Bd2 {[%clk 0:01:08]}  g5 {[%clk 0:01:47]} 18. f4 {[%clk 0:01:08]}  Rd5 {[%clk 0:01:28]} 19. fxg5 {[%clk 0:01:07]}  hxg5 {[%clk 0:01:28]} 20. Kb1 {[%clk 0:00:49]}  Nxh5 {[%clk 0:01:19]} 21. Qf3 {[%clk 0:00:46]}  Nf4 {[%clk 0:01:18]} 22. Rxh8+ {[%clk 0:00:44]}  Bxh8 {[%clk 0:01:18]} 23. Bxf4 {[%clk 0:00:41]}  gxf4 {[%clk 0:01:18]} 24. Qxf4 {[%clk 0:00:42]}  Qf6 {[%clk 0:01:13]} 25. Qe3 {[%clk 0:00:36]}  e5 {[%clk 0:01:02]} 26. Rh1 {[%clk 0:00:34]}  Rd8 {[%clk 0:00:52]} 27. d5 {[%clk 0:00:22]}  Kb8 {[%clk 0:00:48]} 28. dxc6 {[%clk 0:00:21]}  Qxc6 {[%clk 0:00:48]} 29. Rxh8 {[%clk 0:00:19]}  Rxh8 {[%clk 0:00:26]} 30. Qxe5+ {[%clk 0:00:18]}  Kc8 {[%clk 0:00:27]} 31. Bf5+ {[%clk 0:00:14]}  Kd8 {[%clk 0:00:26]} 32. Qxh8+ {[%clk 0:00:15]}  Ke7 {[%clk 0:00:26]} 33. Qe5+ {[%clk 0:00:15]}  Kf8 {[%clk 0:00:26]} 34. Be4 {[%clk 0:00:14]}  Qd7 {[%clk 0:00:25]} 35. Qh8+ {[%clk 0:00:12]}  Ke7 {[%clk 0:00:24]} 36. Qd4 {[%clk 0:00:12]}  Qb5 {[%clk 0:00:17]} 37. Qb4+ {[%clk 0:00:11]}  Qxb4 {[%clk 0:00:17]} 38. cxb4 {[%clk 0:00:12]}  b6 {[%clk 0:00:18]} 39. Kc2 {[%clk 0:00:12]}  Kd6 {[%clk 0:00:19]} 40. Kd3 {[%clk 0:00:12]}  Ke5 {[%clk 0:00:19]} 41. Ke3 {[%clk 0:00:13]}  f5 {[%clk 0:00:19]} 42. f4+ {[%clk 0:00:13]}  Ke6 {[%clk 0:00:18]} 43. Bd3 {[%clk 0:00:14]}  Kf6 {[%clk 0:00:18]} 44. Kd4 {[%clk 0:00:14]} 1-0


[Site "https://www.chess.com"]

[Event "Titled Tuesday Blitz February 07 Early 2023"]
[White "Zhigalko, Sergei"]
[Black "Khamdamova, Afruza"]
[WhiteFideId "13502956"]
[BlackFideId "14210444"]
[WhiteElo "2572"]
[BlackElo "2162"]
[Result "1-0"]
[Round "01"]
[TimeControl "180+2"]
[Date "2023.02.07"]
[WhiteClock "0:00:19"]
[BlackClock "0:00:12"]

1. e4 {[%clk 0:03:00]}  e5 {[%clk 0:02:27]} 2. Nf3 {[%clk 0:02:59]}  Nf6 {[%clk 0:02:27]} 3. d4 {[%clk 0:02:58]}  Nxe4 {[%clk 0:02:26]} 4. Bd3 {[%clk 0:02:57]}  d5 {[%clk 0:02:26]} 5. Nxe5 {[%clk 0:02:58]}  Nd7 {[%clk 0:02:26]} 6. Nxd7 {[%clk 0:02:58]}  Bxd7 {[%clk 0:02:26]} 7. O-O {[%clk 0:02:58]}  Be7 {[%clk 0:02:22]} 8. Nc3 {[%clk 0:02:56]}  Nxc3 {[%clk 0:02:21]} 9. bxc3 {[%clk 0:02:57]}  c6 {[%clk 0:02:12]} 10. Qh5 {[%clk 0:02:52]}  g6 {[%clk 0:02:07]} 11. Qh6 {[%clk 0:02:51]}  Bf8 {[%clk 0:02:07]} 12. Re1+ {[%clk 0:02:49]}  Be6 {[%clk 0:02:07]} 13. Qf4 {[%clk 0:02:47]}  Bg7 {[%clk 0:02:06]} 14. Ba3 {[%clk 0:02:46]}  Qd7 {[%clk 0:01:55]} 15. Rab1 {[%clk 0:02:37]}  Bf8 {[%clk 0:01:38]} 16. Qf6 {[%clk 0:02:00]}  Rg8 {[%clk 0:01:38]} 17. Rxb7 {[%clk 0:01:03]}  Qxb7 {[%clk 0:00:37]} 18. Rxe6+ {[%clk 0:01:03]}  fxe6 {[%clk 0:00:37]} 19. Qxe6+ {[%clk 0:01:04]}  Kd8 {[%clk 0:00:34]} 20. Qxg8 {[%clk 0:01:03]}  Kc7 {[%clk 0:00:33]} 21. Bxf8 {[%clk 0:00:59]}  Qc8 {[%clk 0:00:19]} 22. Qxh7+ {[%clk 0:00:56]}  Qd7 {[%clk 0:00:19]} 23. Qxd7+ {[%clk 0:00:55]}  Kxd7 {[%clk 0:00:19]} 24. Bc5 {[%clk 0:00:52]}  g5 {[%clk 0:00:19]} 25. Bf5+ {[%clk 0:00:40]}  Kc7 {[%clk 0:00:19]} 26. g4 {[%clk 0:00:41]}  a5 {[%clk 0:00:18]} 27. Kg2 {[%clk 0:00:39]}  Re8 {[%clk 0:00:19]} 28. Kf1 {[%clk 0:00:34]}  Rh8 {[%clk 0:00:19]} 29. Kg2 {[%clk 0:00:26]}  Re8 {[%clk 0:00:18]} 30. a3 {[%clk 0:00:26]}  a4 {[%clk 0:00:17]} 31. Kf3 {[%clk 0:00:24]}  Rh8 {[%clk 0:00:16]} 32. Kg3 {[%clk 0:00:21]}  Re8 {[%clk 0:00:16]} 33. h4 {[%clk 0:00:21]}  gxh4+ {[%clk 0:00:16]} 34. Kxh4 {[%clk 0:00:22]}  Re2 {[%clk 0:00:15]} 35. Kg3 {[%clk 0:00:21]}  Kd8 {[%clk 0:00:14]} 36. g5 {[%clk 0:00:21]}  Re1 {[%clk 0:00:14]} 37. g6 {[%clk 0:00:20]}  Rg1+ {[%clk 0:00:13]} 38. Kf4 {[%clk 0:00:20]}  Ke8 {[%clk 0:00:12]} 39. f3 {[%clk 0:00:19]} 1-0


[Site "https://www.chess.com"]